fUSD/lending_fUSD_20250905
["ID","MTS","AMOUNT","RATE_DAILY","PERIOD"]
[383769316,1757109277343,-1000.0,0.000438,120]
[383769317,1757109277351,-200.0,0.0004383,30]
[383769318,1757109277360,-668.65,0.00043835,120]
[383769319,1757109277370,-400.0,0.00043835,120]
[383769320,1757109277379,-1074.65,0.00043835,120]
[383769321,1757109277388,-1074.65,0.00043835,120]
[383769322,1757109277397,-1074.65,0.00043835,120]
[383769323,1757109277406,-1074.65,0.00043835,120]
[383769324,1757109277415,-1074.65,0.00043835,120]
[383769325,1757109277424,-1074.65,0.00043835,120]
[383769326,1757109277434,-1074.65,0.00043835,120]
[383769327,1757109277443,-1074.65,0.00043835,120]
[383769328,1757109277452,-1074.65,0.00043835,120]
[383769329,1757109277461,-1074.65,0.00043835,120]
[383769330,1757109277471,-1074.65,0.00043835,120]
[383769331,1757109277480,-1074.65,0.00043835,120]
[383769332,1757109277490,-1074.65,0.00043835,120]
[383769333,1757109277499,-1074.65,0.00043835,120]
[383769334,1757109277508,-1074.65,0.00043835,120]
[383769335,1757109277517,-1074.65,0.00043835,120]
[383769336,1757109277527,-1074.65,0.00043835,120]
[383769337,1757109277536,-1074.65,0.00043835,120]
[383769338,1757109277546,-1074.65,0.00043835,120]
[383769339,1757109277555,-1074.65,0.00043835,120]
[383769340,1757109277564,-1074.65,0.00043835,120]
[383769341,1757109277573,-1074.65,0.00043835,120]
[383769342,1757109277583,-1074.65,0.00043835,120]
[383769343,1757109277592,-1074.82713368,0.00043835,120]
[383769344,1757109277601,-500.0,0.00043835,120]
[383769345,1757109277610,-500.0,0.00043835,120]
[383769346,1757109277620,-500.0,0.00043835,120]
[383769347,1757109277629,-500.0,0.00043835,120]
[383769348,1757109277638,-500.0,0.00043835,120]
[383769349,1757109277647,-500.0,0.00043835,120]
[383769350,1757109277656,-500.0,0.00043835,120]
[383769351,1757109277665,-500.0,0.00043835,120]
[383769352,1757109277675,-500.0,0.00043835,120]
[383769353,1757109277684,-262.51092485,0.00043835,120]
[383769354,1757109277693,-900.0,0.00043836,29]
[383769355,1757109277702,-389.16,0.00043881,30]
[383769356,1757109277711,-150.0,0.00043892,120]
[383769357,1757109277721,-50042.15871962,0.000439,30]
[383769358,1757109277730,-167978.60506811,0.000439,120]
[383769359,1757109277739,-500.0,0.00043904,60]
[383769360,1757109277749,-299.79,0.00043972,37]
[383769361,1757109277758,-499145.95727526,0.0004398,120]
[383769362,1757109277767,-152.0,0.00043986,5]
[383769363,1757109277776,-10000.0,0.00043998,60]
[383769364,1757109277786,-50000.0,0.00044,44]
[383769365,1757109277795,-240177.58098631,0.00044,120]
[383769366,1757109277805,-289.81898064,0.00044,120]
[383769367,1757109277814,-1046.49490159,0.00044,120]
[383769368,1757109277823,-1508.04303073,0.00044,120]
[383769369,1757109277832,-12639.82864112,0.00044,120]
[383769370,1757109277841,-300.0,0.00044,26]
[383769371,1757109277851,-1000.0,0.00044,60]
[383769372,1757109277860,-2500.0,0.00044,120]
[383769373,1757109277870,-250.0,0.00044,120]
[383769374,1757109277879,-41723.16,0.00044,14]
[383769375,1757109277888,-13159.05,0.00044,30]
[383769376,1757109277897,-45628.2,0.00044,30]
[383769377,1757109277907,-293.49,0.0004401,120]
[383769378,1757109277917,-5000.0,0.00044025,120]
[383769379,1757109277926,-151.0,0.000441,120]
[383769380,1757109277935,-1660.84326002,0.00044103,120]
[383769381,1757109277944,-150.0,0.00044108,120]
[383769382,1757109277953,-668.65,0.00044109,120]
[383769383,1757109278096,-400.0,0.00044109,120]
[383769384,1757109278107,-1987.61,0.00044109,120]
[383769385,1757109278116,-429.1065905,0.00044136,120]
[383769386,1757109278126,-979.76366898,0.00044136,120]
[383769387,1757109278135,-150.0,0.00044236,120]
[383769388,1757109278144,-3794.32051698,0.00044324,30]
[383769389,1757109278153,-668.65,0.00044383,120]
[383769390,1757109278162,-532.69,0.00044383,120]
[383769391,1757109278171,-342.09668294,0.0004439,120]
[383769392,1757109278181,-2552.12588368,0.00044398,64]
[383769393,1757109278192,-268343.30308561,0.000444,33]
[383769394,1757109278203,-425.51931025,0.000444,33]
[383769395,1757109278211,-1974.41521901,0.000444,120]
[383769396,1757109278220,-150.0,0.00044414,120]
[383769397,1757109278230,-150.0,0.00044429,120]
[383769398,1757109278239,-248590.4607807,0.0004444,120]
[383769399,1757109278247,-2400.0,0.00044452,60]
[383769400,1757109278256,-800.0,0.00044452,60]
[383769401,1757109278265,-536.7615046,0.00044456,44]
[383769402,1757109278274,-28906.6111953,0.00044495,30]
[383769403,1757109278283,-482.7997409,0.000445,7]
[383769404,1757109278292,-30000.0,0.000445,120]
[383769405,1757109278301,-165.0,0.00044503,90]
[383769406,1757109278309,-354.0,0.0004453,2]
[383769407,1757109278318,-668.65,0.00044657,120]
[383769408,1757109278329,-299.79,0.00044657,39]
[383769409,1757109278339,-248.71531821,0.00044665,60]
[383769410,1757109278349,-600.0,0.00044665,60]
[383769411,1757109278358,-151.0,0.00044665,60]
[383769412,1757109278369,-500.0,0.00044665,60]
[383769413,1757109278379,-151.0,0.00044665,60]
[383769414,1757109278389,-160.0,0.00044665,60]
[383769415,1757109278398,-646.65982734,0.00044665,60]
[383769416,1757109278407,-500.0,0.00044665,60]
[383769417,1757109278417,-284.5214761,0.00044665,60]
[383769418,1757109278428,-500.0,0.00044665,60]
[383769419,1757109278437,-250.0,0.00044665,60]
[383769420,1757109278446,-500.0,0.00044665,60]
[383769421,1757109278455,-250.0,0.00044665,60]
[383769422,1757109278464,-187.78006525,0.00044665,60]
[383769423,1757109278474,-151.0,0.00044665,60]
[383769424,1757109278483,-1000.0,0.00044665,60]
[383769425,1757109278492,-8565.75555911,0.00044665,60]
[383769426,1757109278502,-250.0,0.00044665,60]
[383769427,1757109278514,-250.0,0.00044665,60]
[383769428,1757109278524,-500.0,0.00044665,60]
[383769429,1757109278533,-150.0,0.00044677,120]
[383769430,1757109278542,-1000.0,0.00044699,60]
[383769431,1757109278551,-30317.76213359,0.000447,30]
[383769432,1757109278562,-238.08431336,0.00044738,30]
[383769433,1757109278573,-150.0,0.00044738,30]
[383769434,1757109278583,-2897.31902005,0.00044738,30]
[383769435,1757109278592,-5434.24536423,0.00044748,10]
[383769436,1757109278601,-2000.0,0.00044775,3]
[383769437,1757109278613,-1051.191,0.00044775,3]
[383769438,1757109278622,-2000.0,0.00044775,3]
[383769439,1757109278632,-150.0,0.00044792,120]
[383769440,1757109278642,-460.46631149,0.000448,120]
[383769441,1757109278654,-165.0,0.00044877,90]
[383769442,1757109278664,-882.83486474,0.000449,30]
[383769443,1757109278675,-2500.0,0.000449,120]
[383769444,1757109278685,-150.0,0.0004492,120]
[383769445,1757109278694,-668.65,0.00044931,120]
[383769446,1757109278703,-1987.61,0.00044931,120]
[383769447,1757109278712,-700.0,0.0004497,3]
[383769448,1757109278721,-600.0,0.0004499,120]
[383769449,1757109278731,-150.0,0.0004499,120]
[383769450,1757109278740,-150.0,0.0004499,120]
[383769451,1757109278749,-15000.0,0.0004499,120]
[383769452,1757109278759,-2269.49853975,0.0004499,120]
[383769453,1757109278768,-250.0,0.00044999,30]
[383769454,1757109278778,-250.0,0.00044999,40]
[383769455,1757109278787,-226.336004,0.00044999,120]
[383769456,1757109278796,-200.0,0.00044999,30]
[383769457,1757109278805,-600.0,0.00044999,30]
[383769458,1757109278815,-600.0,0.00044999,40]
[383769459,1757109278824,-207.4,0.00044999,40]
[383769460,1757109278833,-215.0738,0.00044999,45]
[383769461,1757109278842,-600.0,0.00044999,45]
[383769462,1757109278852,-223.0315306,0.00044999,85]
[383769463,1757109278862,-600.0,0.00044999,85]
[383769464,1757109278871,-231.28369723,0.00044999,90]
[383769465,1757109278881,-600.0,0.00044999,90]
[383769466,1757109278890,-239.84119403,0.00044999,120]
[383769467,1757109278899,-600.0,0.00044999,120]
[383769468,1757109278909,-151.0,0.00044999,30]
[383769469,1757109278918,-500.0,0.00044999,30]
[383769470,1757109278927,-500.0,0.00044999,30]
[383769471,1757109278936,-160.0,0.00044999,30]
[383769472,1757109278945,-600.0,0.00044999,30]
[383769473,1757109278954,-151.0,0.00044999,30]
[383769474,1757109278963,-151.0,0.00044999,40]
[383769475,1757109278972,-520.0,0.00044999,30]
[383769476,1757109278981,-250.0,0.00044999,30]
[383769477,1757109278990,-500.0,0.00044999,40]
[383769478,1757109278999,-160.0,0.00044999,40]
[383769479,1757109279010,-600.0,0.00044999,40]
[383769480,1757109279019,-151.0,0.00044999,40]
[383769481,1757109279028,-151.0,0.00044999,45]
[383769482,1757109279037,-539.24,0.00044999,40]
[383769483,1757109279046,-500.0,0.00044999,40]
[383769484,1757109279055,-250.0,0.00044999,40]
[383769485,1757109279064,-500.0,0.00044999,45]
[383769486,1757109279073,-160.0,0.00044999,45]
[383769487,1757109279082,-600.0,0.00044999,45]
[383769488,1757109279090,-151.0,0.00044999,45]
[383769489,1757109279100,-151.0,0.00044999,85]
[383769490,1757109279109,-500.0,0.00044999,30]
[383769491,1757109279118,-559.19188,0.00044999,45]
[383769492,1757109279127,-500.0,0.00044999,45]
[383769493,1757109279136,-250.0,0.00044999,45]
[383769494,1757109279145,-500.0,0.00044999,85]
[383769495,1757109279154,-600.0,0.00044999,85]
[383769496,1757109279163,-160.0,0.00044999,85]
[383769497,1757109279172,-151.0,0.00044999,85]
[383769498,1757109279181,-151.0,0.00044999,90]
[383769499,1757109279190,-500.0,0.00044999,40]
[383769500,1757109279199,-579.88197956,0.00044999,85]
[383769501,1757109279208,-500.0,0.00044999,85]
[383769502,1757109279217,-500.0,0.00044999,90]
[383769503,1757109279227,-250.0,0.00044999,85]
[383769504,1757109279236,-600.0,0.00044999,90]
[383769505,1757109279248,-160.0,0.00044999,90]
[383769506,1757109279259,-151.0,0.00044999,90]
[383769507,1757109279268,-151.0,0.00044999,120]
[383769508,1757109279278,-500.0,0.00044999,45]
[383769509,1757109279287,-601.3376128,0.00044999,90]
[383769510,1757109279297,-500.0,0.00044999,90]
[383769511,1757109279308,-500.0,0.00044999,120]
[383769512,1757109279317,-250.0,0.00044999,90]
[383769513,1757109279328,-151.0,0.00044999,120]
[383769514,1757109279337,-160.0,0.00044999,120]
[383769515,1757109279347,-500.0,0.00044999,85]
[383769516,1757109279358,-623.58710448,0.00044999,120]
[383769517,1757109279368,-500.0,0.00044999,120]
[383769518,1757109279378,-250.0,0.00044999,120]
[383769519,1757109279389,-500.0,0.00044999,90]
[383769520,1757109279399,-500.0,0.00044999,120]
[383769521,1757109279408,-151.0,0.00044999,30]
[383769522,1757109279417,-151.0,0.00044999,40]
[383769523,1757109279427,-151.0,0.00044999,45]
[383769524,1757109279437,-151.0,0.00044999,30]
[383769525,1757109279447,-151.0,0.00044999,85]
[383769526,1757109279457,-151.0,0.00044999,90]
[383769527,1757109279467,-250.0,0.00044999,30]
[383769528,1757109279479,-151.0,0.00044999,40]
[383769529,1757109279490,-500.0,0.00044999,30]
[383769530,1757109279499,-250.0,0.00044999,40]
[383769531,1757109279510,-151.0,0.00044999,45]
[383769532,1757109279520,-500.0,0.00044999,40]
[383769533,1757109279529,-200.19215106,0.00044999,30]
[383769534,1757109279539,-250.0,0.00044999,45]
[383769535,1757109279549,-500.0,0.00044999,45]
[383769536,1757109279558,-250.0,0.00044999,85]
[383769537,1757109279567,-500.0,0.00044999,85]
[383769538,1757109279576,-250.0,0.00044999,30]
[383769539,1757109279585,-250.0,0.00044999,90]
[383769540,1757109279594,-500.0,0.00044999,90]
[383769541,1757109279603,-250.0,0.00044999,120]
[383769542,1757109279612,-250.0,0.00044999,40]
[383769543,1757109279622,-500.0,0.00044999,120]
[383769544,1757109279631,-250.0,0.00044999,45]
[383769545,1757109279640,-250.0,0.00044999,85]
[383769546,1757109279650,-151.0,0.00044999,30]
[383769547,1757109279660,-151.0,0.00044999,30]
[383769548,1757109279669,-250.0,0.00044999,90]
[383769549,1757109279678,-156.587,0.00044999,40]
[383769550,1757109279687,-151.0,0.00044999,40]
[383769551,1757109279696,-250.0,0.00044999,120]
[383769552,1757109279706,-151.0,0.00044999,45]
[383769553,1757109279715,-162.380719,0.00044999,45]
[383769554,1757109279724,-151.0,0.00044999,85]
[383769555,1757109279734,-6888.0,0.00044999,30]
[383769556,1757109279743,-1000.0,0.00044999,30]
[383769557,1757109279752,-168.3888056,0.00044999,85]
[383769558,1757109279761,-151.0,0.00044999,90]
[383769559,1757109279772,-1000.0,0.00044999,40]
[383769560,1757109279782,-174.61919141,0.00044999,90]
[383769561,1757109279791,-7142.856,0.00044999,40]
[383769562,1757109279800,-1000.0,0.00044999,45]
[383769563,1757109279809,-181.08010149,0.00044999,120]
[383769564,1757109279818,-7407.141672,0.00044999,45]
[383769565,1757109279827,-151.0,0.00044999,120]
[383769566,1757109279836,-1000.0,0.00044999,85]
[383769567,1757109279845,-7681.20591386,0.00044999,85]
[383769568,1757109279854,-1000.0,0.00044999,90]
[383769569,1757109279863,-7965.41053268,0.00044999,90]
[383769570,1757109279872,-1000.0,0.00044999,120]
[383769571,1757109279883,-8260.13072239,0.00044999,120]
[383769572,1757109279893,-151.0,0.00044999,30]
[383769573,1757109279903,-151.0,0.00044999,40]
[383769574,1757109279913,-151.0,0.00044999,45]
[383769575,1757109279923,-300.0,0.00044999,30]
[383769576,1757109279933,-151.0,0.00044999,30]
[383769577,1757109279943,-311.1,0.00044999,40]
[383769578,1757109279953,-250.0,0.00044999,30]
[383769579,1757109279963,-151.0,0.00044999,40]
[383769580,1757109279974,-250.0,0.00044999,40]
[383769581,1757109279983,-250.0,0.00044999,30]
[383769582,1757109279992,-250.0,0.00044999,45]
[383769583,1757109280001,-250.0,0.00044999,40]
[383769584,1757109280013,-250.0,0.00044999,85]
[383769585,1757109280023,-250.0,0.00044999,45]
[383769586,1757109280032,-250.0,0.00044999,90]
[383769587,1757109280042,-250.0,0.00044999,85]
[383769588,1757109280052,-250.0,0.00044999,120]
[383769589,1757109280061,-250.0,0.00044999,90]
[383769590,1757109280071,-250.0,0.00044999,120]
[383769591,1757109280083,-500.0,0.00044999,30]
[383769592,1757109280094,-500.0,0.00044999,40]
[383769593,1757109280104,-500.0,0.00044999,45]
[383769594,1757109280114,-500.0,0.00044999,85]
[383769595,1757109280124,-500.0,0.00044999,90]
[383769596,1757109280135,-500.0,0.00044999,120]
[383769597,1757109280145,-50000.0,0.00045,45]
[383769598,1757109280155,-391151.80672272,0.00045,120]
[383769599,1757109280166,-6906.8412782,0.00045,120]
[383769600,1757109280175,-262658.0,0.00045,120]
[383769601,1757109280186,-272.0,0.00045,120]
[383769602,1757109280196,-195.56409903,0.00045,120]
[383769603,1757109280207,-255.05826593,0.00045,120]
[383769604,1757109280216,-885.53,0.00045,120]
[383769605,1757109280227,-445.0,0.00045,120]
[383769606,1757109280236,-600.0,0.00045,120]
[383769607,1757109280246,-164.7,0.00045,85]
[383769608,1757109280256,-1598.0,0.00045,120]
[383769609,1757109280266,-170.637508,0.00045,120]
[383769610,1757109280278,-703316.77629497,0.00045,120]
[383769611,1757109280288,-30298.56380059,0.00045,2]
[383769612,1757109280299,-185.57855833,0.00045,120]
[383769613,1757109280309,-1855.2331349,0.00045,120]
[383769614,1757109280320,-285.97123061,0.00045,120]
[383769615,1757109280329,-1017.8588223,0.00045,120]
[383769616,1757109280340,-423.8232489,0.00045,120]
[383769617,1757109280349,-194.60861138,0.00045,120]
[383769618,1757109280358,-2872.48759765,0.00045,120]
[383769619,1757109280368,-1350.1002186,0.00045,120]
[383769620,1757109280377,-2865.47340308,0.00045,120]
[383769621,1757109280387,-5226.17179709,0.00045,30]
[383769622,1757109280396,-752.0973418,0.00045,120]
[383769623,1757109280405,-299.29075863,0.00045,120]
[383769624,1757109280414,-1093.35525709,0.00045,120]
[383769625,1757109280422,-1092.83122352,0.00045,30]
[383769626,1757109280431,-300.0,0.00045,27]
[383769627,1757109280440,-1000.0,0.00045,60]
[383769628,1757109280449,-471.44730752,0.00045,120]
[383769629,1757109280457,-210.0,0.00045,120]
[383769630,1757109280467,-2326.44309052,0.00045,60]
[383769631,1757109280475,-1907.0,0.00045,120]
[383769632,1757109280484,-470.0,0.00045,120]
[383769633,1757109280493,-1267.34111038,0.00045,10]
[383769634,1757109280502,-5000.0,0.00045,120]
[383769635,1757109280511,-417.69926247,0.00045,120]
[383769636,1757109280520,-212.0,0.00045,30]
[383769637,1757109280530,-200.0,0.00045,30]
[383769638,1757109280539,-214.0,0.00045,30]
[383769639,1757109280548,-37122.97,0.00045,120]
[383769640,1757109280557,-218.0,0.00045,30]
[383769641,1757109280566,-202.0,0.00045,30]
[383769642,1757109280575,-200.0,0.00045,30]
[383769643,1757109280584,-200.0,0.00045,30]
[383769644,1757109280594,-200.0,0.00045,30]
[383769645,1757109280603,-200.0,0.00045,30]
[383769646,1757109280612,-245.0,0.00045,30]
[383769647,1757109280622,-5010.0,0.00045,60]
[383769648,1757109280631,-5010.0,0.00045,60]
[383769649,1757109280641,-5010.0,0.00045,60]
[383769650,1757109280651,-5010.0,0.00045,60]
[383769651,1757109280660,-5010.0,0.00045,60]
[383769652,1757109280671,-7474.2238602,0.00045,120]
[383769653,1757109280681,-245.0,0.00045,30]
[383769654,1757109280692,-685.32,0.00045,30]
[383769655,1757109280701,-245.0,0.00045,30]
[383769656,1757109280711,-736.0,0.00045,10]
[383769657,1757109280720,-6326.0,0.00045,120]
[383769658,1757109280729,-1087.0,0.00045,30]
[383769659,1757109280738,-1087.0,0.00045,30]
[383769660,1757109280748,-500.0,0.00045,60]
[383769661,1757109280757,-1087.0,0.00045,30]
[383769662,1757109280766,-1087.0,0.00045,30]
[383769663,1757109280776,-18909.20510518,0.000451,120]
[383769664,1757109280785,-2259.32906405,0.00045114,120]
[383769665,1757109280795,-169.56073279,0.0004513,120]
[383769666,1757109280804,-150.0,0.00045146,120]
[383769667,1757109280814,-668.65,0.00045205,120]
[383769668,1757109280823,-2027.21742497,0.00045233,120]
[383769669,1757109280832,-548.0,0.00045254,60]
[383769670,1757109280842,-150.0,0.00045328,120]
[383769671,1757109280852,-299.79,0.00045342,41]
[383769672,1757109280861,-150.0,0.00045374,120]
[383769673,1757109280871,-153.0,0.000454,120]
[383769674,1757109280880,-150.0,0.00045426,120]
[383769675,1757109280889,-1661.61296092,0.00045445,120]
[383769676,1757109280898,-668.65,0.00045479,120]
[383769677,1757109280907,-536.7615046,0.00045486,46]
[383769678,1757109280916,-50000.0,0.000455,31]
[383769679,1757109280925,-400000.0,0.000455,120]
[383769680,1757109280934,-1614.0,0.000455,120]
[383769681,1757109280945,-2400.0,0.00045548,60]
[383769682,1757109280954,-800.0,0.00045548,60]
[383769683,1757109280963,-1000000.0,0.0004555,120]
[383769684,1757109280972,-150.0,0.00045654,120]
[383769685,1757109280982,-186.57855386,0.000457,120]
[383769686,1757109280991,-162.72861807,0.000457,90]
[383769687,1757109281001,-345.0,0.000457,2]
[383769688,1757109281013,-668.65,0.00045753,120]
[383769689,1757109281022,-1987.61,0.00045753,120]
[383769690,1757109281031,-3508.72478172,0.000458,2]
[383769691,1757109281040,-50000.0,0.00046,46]
[383769692,1757109281050,-107546.11211534,0.00046,10]
[383769693,1757109281059,-50000.0,0.00046,31]
[383769694,1757109281069,-300.0,0.00046,20]
[383769695,1757109281079,-1000.0,0.00046,30]
[383769696,1757109281088,-183.88390112,0.00046,120]
[383769697,1757109281097,-400.0,0.00046,120]
[383769698,1757109281106,-250.0,0.00046,120]
[383769699,1757109281115,-1000.0,0.00046,120]
[383769700,1757109281125,-500000.0,0.00046,120]
[383769701,1757109281134,-500000.0,0.00046,120]
[383769702,1757109281143,-1377.57126914,0.00046,120]
[383769703,1757109281152,-199.38496642,0.00046,120]
[383769704,1757109281164,-855.36491218,0.00046,120]
[383769705,1757109281174,-5000.0,0.00046,120]
[383769706,1757109281183,-1000000.0,0.00046,120]
[383769707,1757109281193,-3297.01649991,0.00046,120]
[383769708,1757109281202,-978.91443931,0.00046,120]
[383769709,1757109281212,-668.65,0.00046027,120]
[383769710,1757109281222,-299.79,0.00046027,43]
[383769711,1757109281232,-150.0,0.00046066,120]
[383769712,1757109281242,-500.0,0.00046096,60]
[383769713,1757109281251,-185.12316122,0.0004613,120]
[383769714,1757109281260,-150.0,0.00046131,120]
[383769715,1757109281269,-250.0,0.00046186,60]
[383769716,1757109281279,-668.65,0.00046301,120]
[383769717,1757109281288,-472.60587534,0.000464,120]
[383769718,1757109281297,-152.18275238,0.000464,120]
[383769719,1757109281306,-150.0,0.00046445,120]
[383769720,1757109281315,-50000.0,0.000465,32]
[383769721,1757109281324,-1000000.0,0.000465,120]
[383769722,1757109281333,-536.7615046,0.00046515,48]
[383769723,1757109281342,-1000000.0,0.0004655,120]
[383769724,1757109281352,-668.65,0.00046575,120]
[383769725,1757109281362,-1987.61,0.00046575,120]
[383769726,1757109281372,-533.0,0.000466,2]
[383769727,1757109281383,-500.0,0.000466,2]
[383769728,1757109281393,-250.0,0.0004663,90]
[383769729,1757109281403,-2400.0,0.00046644,60]
[383769730,1757109281414,-800.0,0.00046644,60]
[383769731,1757109281425,-299.79,0.00046712,45]
[383769732,1757109281436,-1408.0,0.00046731,120]
[383769733,1757109281446,-332.37557341,0.000468,120]
[383769734,1757109281455,-739.47284958,0.000468,120]
[383769735,1757109281466,-159.17033242,0.000468,60]
[383769736,1757109281476,-668.65,0.00046849,120]
[383769737,1757109281486,-22021.43218381,0.0004685,120]
[383769738,1757109281495,-336.0,0.0004686,2]
[383769739,1757109281505,-900.0,0.0004688,120]
[383769740,1757109281514,-1566.11037059,0.000469,120]
[383769741,1757109281524,-2000.0,0.0004699,49]
[383769742,1757109281534,-250.0,0.00046999,120]
[383769743,1757109281544,-50000.0,0.00047,33]
[383769744,1757109281553,-300.0,0.00047,20]
[383769745,1757109281563,-1000.0,0.00047,120]
[383769746,1757109281573,-1598.0,0.00047,120]
[383769747,1757109281582,-500000.0,0.00047,120]
[383769748,1757109281594,-2000.01,0.00047,120]
[383769749,1757109281604,-50000.0,0.00047,30]
[383769750,1757109281614,-50000.0,0.00047,20]
[383769751,1757109281623,-2436.96651406,0.00047,120]
[383769752,1757109281633,-5000.0,0.00047,120]
[383769753,1757109281642,-2079.63,0.00047,14]
[383769754,1757109281651,-6326.0,0.00047,120]
[383769755,1757109281662,-165.0,0.00047121,90]
[383769756,1757109281671,-668.65,0.00047123,120]
[383769757,1757109281681,-284.752,0.00047166,120]
[383769758,1757109281691,-284.753,0.00047166,120]
[383769759,1757109281701,-284.752,0.00047166,120]
[383769760,1757109281710,-284.752,0.00047166,120]
[383769761,1757109281719,-284.752,0.00047166,120]
[383769762,1757109281728,-207.54984894,0.00047192,60]
[383769763,1757109281738,-153.0,0.000472,120]
[383769764,1757109281747,-151.0,0.000472,120]
[383769765,1757109281757,-150.0,0.00047204,120]
[383769766,1757109281767,-150.0,0.00047222,120]
[383769767,1757109281777,-378.56236281,0.0004725,120]
[383769768,1757109281788,-1087.0,0.0004725,30]
[383769769,1757109281797,-60000.0,0.00047319,120]
[383769770,1757109281806,-152.0,0.00047324,6]
[383769771,1757109281816,-668.65,0.00047397,120]
[383769772,1757109281825,-299.79,0.00047397,47]
[383769773,1757109281835,-1987.61,0.00047397,120]
[383769774,1757109281844,-695582.71,0.0004744,30]
[383769775,1757109281853,-500000.0,0.0004744,30]
[383769776,1757109281863,-179.86989518,0.000475,120]
[383769777,1757109281872,-1000000.0,0.000475,120]
[383769778,1757109281883,-32520.78639162,0.000475,120]
[383769779,1757109281893,-50000.0,0.000475,120]
[383769780,1757109281903,-536.7615046,0.00047544,50]
[383769781,1757109281916,-1000000.0,0.0004755,120]
[383769782,1757109281929,-5280.16060551,0.000476,2]
[383769783,1757109281940,-176.22002232,0.000476,120]
[383769784,1757109281950,-582.0,0.00047642,3]
[383769785,1757109281963,-668.65,0.00047671,120]
[383769786,1757109281972,-2000.0,0.000477,120]
[383769787,1757109281982,-2000.0,0.000477,120]
[383769788,1757109281991,-171.0,0.000477,120]
[383769789,1757109282001,-2400.0,0.0004774,60]
[383769790,1757109282015,-800.0,0.0004774,60]
[383769791,1757109282027,-3067.45533369,0.0004777,120]
[383769792,1757109282036,-34791.94097442,0.000478,120]
[383769793,1757109282047,-3320.66015721,0.000479,120]
[383769794,1757109282058,-1611.16849383,0.000479,120]
[383769795,1757109282067,-668.65,0.00047945,120]
[383769796,1757109282080,-48695.316004,0.0004795,30]
[383769797,1757109282091,-2000.0,0.0004799,49]
[383769798,1757109282100,-50000.0,0.00048,48]
[383769799,1757109282110,-1390.78018293,0.00048,7]
[383769800,1757109282121,-100000.0,0.00048,35]
[383769801,1757109282132,-300.0,0.00048,20]
[383769802,1757109282142,-227.60861123,0.00048,60]
[383769803,1757109282151,-723.93234684,0.00048,120]
[383769804,1757109282160,-213.93800884,0.00048,120]
[383769805,1757109282288,-50000.0,0.00048,30]
[383769806,1757109282303,-50000.0,0.00048,40]
[383769807,1757109282313,-400.0,0.00048,120]
[383769808,1757109282323,-250.0,0.00048,120]
[383769809,1757109282333,-500000.0,0.00048,120]
[383769810,1757109282342,-1000.0,0.00048,120]
[383769811,1757109282351,-631.37560269,0.00048,120]
[383769812,1757109282361,-405.33219475,0.00048,30]
[383769813,1757109282370,-298.77603324,0.00048,30]
[383769814,1757109282379,-400000.0,0.00048,120]
[383769815,1757109282388,-738.0,0.00048,120]